fUSD/lending_fUSD_20250202
["ID","MTS","AMOUNT","RATE_DAILY","PERIOD"]
[351312536,1738511497017,-774.16,0.00012464,2]
[351312537,1738511497027,-782.48,0.00012464,2]
[351312538,1738511497044,-7030.17,0.00012464,2]
[351312539,1738511497054,-2514.52,0.00012464,2]
[351312540,1738511497067,-681.48,0.00012464,2]
[351312541,1738511497078,-790.42,0.00012464,2]
[351312542,1738511497088,-3657.25,0.00012464,2]
[351312543,1738511497099,-3049.12,0.00012464,2]
[351312544,1738511497108,-500.0,0.00012464,2]
[351312545,1738511497118,-1745.16,0.00012464,2]
[351312546,1738511497127,-1031.35,0.00012464,2]
[351312547,1738511497137,-1816.81,0.00012464,2]
[351312548,1738511497147,-528.0,0.00012464,2]
[351312549,1738511497157,-4052.48,0.00012464,2]
[351312550,1738511497167,-602.22,0.00012464,2]
[351312551,1738511497178,-500.0,0.00012464,2]
[351312552,1738511497188,-1474.86,0.00012464,2]
[351312553,1738511497198,-4337.5,0.00012464,2]
[351312554,1738511497207,-1297.61,0.00012464,2]
[351312555,1738511497217,-1453.24,0.00012464,2]
[351312556,1738511497226,-1696.27,0.00012464,2]
[351312557,1738511497236,-1292.86,0.00012464,2]
[351312558,1738511497246,-1155.8,0.00012464,2]
[351312559,1738511497256,-734.3,0.00012464,2]
[351312560,1738511497266,-1512.01,0.00012464,2]
[351312561,1738511497276,-1336.03,0.00012464,2]
[351312562,1738511497286,-500.0,0.00012464,2]
[351312563,1738511497296,-686.62,0.00012464,2]
[351312564,1738511497306,-1393.61,0.00012464,2]
[351312565,1738511497316,-500.0,0.00012464,2]
[351312566,1738511497327,-1657.23,0.00012464,2]
[351312567,1738511497336,-1120.37,0.00012464,2]
[351312568,1738511497347,-823.51,0.00012464,2]
[351312569,1738511497356,-500.0,0.00012465,2]
[351312570,1738511497366,-500.0,0.00012465,2]
[351312571,1738511497376,-663.36,0.00012465,2]
[351312572,1738511497386,-500.0,0.00012465,2]
[351312573,1738511497396,-500.0,0.00012465,2]
[351312574,1738511497406,-500.0,0.00012465,2]
[351312575,1738511497416,-500.0,0.00012465,2]
[351312576,1738511497427,-698.15,0.00012465,2]
[351312577,1738511497436,-500.0,0.00012465,2]
[351312578,1738511497446,-500.0,0.00012465,2]
[351312579,1738511497456,-500.0,0.00012465,2]
[351312580,1738511497466,-500.0,0.00012465,2]
[351312581,1738511497476,-500.0,0.00012465,2]
[351312582,1738511497486,-500.0,0.00012465,2]
[351312583,1738511497499,-500.0,0.00012465,2]
[351312584,1738511497509,-500.0,0.00012465,2]
[351312585,1738511497519,-500.0,0.00012465,2]
[351312586,1738511497529,-705.16,0.00012465,2]
[351312587,1738511497539,-531.92,0.00012465,2]
[351312588,1738511497549,-500.0,0.00012465,2]
[351312589,1738511497559,-500.0,0.00012465,2]
[351312590,1738511497570,-500.0,0.00012465,2]
[351312591,1738511497580,-500.0,0.00012465,2]
[351312592,1738511497590,-500.0,0.00012465,2]
[351312593,1738511497600,-500.0,0.00012465,2]
[351312594,1738511497612,-500.0,0.00012465,2]
[351312595,1738511497623,-719.85,0.00012465,2]
[351312596,1738511497633,-594.38,0.00012465,2]
[351312597,1738511497643,-563.78,0.00012465,2]
[351312598,1738511497652,-500.0,0.00012465,2]
[351312599,1738511497662,-500.0,0.00012465,2]
[351312600,1738511497674,-752.42,0.00012465,2]
[351312601,1738511497684,-500.0,0.00012465,2]
[351312602,1738511497694,-500.0,0.00012465,2]
[351312603,1738511497704,-743.8,0.00012465,2]
[351312604,1738511497714,-364.55194868,0.00012465,2]
[351312605,1738511497724,-500.0,0.00012465,2]
[351312606,1738511497733,-500.0,0.00012465,2]
[351312607,1738511497744,-500.0,0.00012465,2]
[351312608,1738511497753,-151.0,0.00012465,2]
[351312609,1738511497763,-151.0,0.00012465,2]
[351312610,1738511497772,-151.0,0.00012465,2]
[351312611,1738511497782,-500.0,0.00012465,2]
[351312612,1738511497792,-500.0,0.00012465,2]
[351312613,1738511497802,-216.364215,0.00012465,2]
[351312614,1738511497811,-725.47,0.00012465,2]
[351312615,1738511497822,-764.06,0.00012465,2]
[351312616,1738511497832,-500.0,0.00012465,2]
[351312617,1738511497842,-500.0,0.00012465,2]
[351312618,1738511497853,-205.31955194,0.00012465,2]
[351312619,1738511497863,-207.98,0.00012465,2]
[351312620,1738511497873,-698.18,0.00012465,2]
[351312621,1738511497883,-791.74,0.00012465,2]
[351312622,1738511497893,-807.25,0.00012465,2]
[351312623,1738511497903,-547.53,0.00012465,2]
[351312624,1738511497913,-500.0,0.00012465,2]
[351312625,1738511497924,-500.0,0.00012465,2]
[351312626,1738511497934,-500.0,0.00012465,2]
[351312627,1738511497943,-837.73,0.00012465,2]
[351312628,1738511497953,-621.45,0.00012465,2]
[351312629,1738511497962,-631.63,0.00012465,2]
[351312630,1738511498149,-799.17,0.00012465,2]
[351312631,1738511498159,-500.0,0.00012465,2]
[351312632,1738511498170,-771.95,0.00012465,2]
[351312633,1738511498180,-620.52,0.00012465,2]
[351312634,1738511498190,-618.87,0.00012465,2]
[351312635,1738511498200,-616.27,0.00012465,2]
[351312636,1738511498210,-500.0,0.00012465,2]
[351312637,1738511498219,-565.37,0.00012465,2]
[351312638,1738511498230,-500.0,0.00012465,2]
[351312639,1738511498239,-601.37,0.00012465,2]
[351312640,1738511498249,-500.0,0.00012465,2]
[351312641,1738511498259,-500.0,0.00012465,2]
[351312642,1738511498268,-500.0,0.00012465,2]
[351312643,1738511498279,-780.81,0.00012465,2]
[351312644,1738511498289,-584.3,0.00012465,2]
[351312645,1738511498300,-500.0,0.00012465,2]
[351312646,1738511498309,-500.0,0.00012465,2]
[351312647,1738511498320,-2686.29,0.00012465,2]
[351312648,1738511498330,-500.0,0.00012465,2]
[351312649,1738511498340,-500.0,0.00012465,2]
[351312650,1738511498350,-808.37,0.00012465,2]
[351312651,1738511498360,-794.83,0.00012465,2]
[351312652,1738511498369,-2679.98,0.00012465,2]
[351312653,1738511498379,-500.0,0.00012465,2]
[351312654,1738511498391,-2338.08,0.00012465,2]
[351312655,1738511498401,-1073.23,0.00012465,2]
[351312656,1738511498411,-500.0,0.00012465,2]
[351312657,1738511498421,-500.0,0.00012465,2]
[351312658,1738511498431,-1816.82,0.00012465,2]
[351312659,1738511498441,-1683.79,0.00012465,2]
[351312660,1738511498451,-4162.42,0.00012465,2]
[351312661,1738511498461,-3144.7,0.00012465,2]
[351312662,1738511498471,-500.0,0.00012465,2]
[351312663,1738511498481,-332.22812886,0.00012465,2]
[351312664,1738511498491,-575.75,0.00012465,2]
[351312665,1738511498501,-689.19,0.00012465,2]
[351312666,1738511498516,-305.292181,0.00012465,2]
[351312667,1738511498526,-1191.99,0.00012465,2]
[351312668,1738511498535,-851.33,0.00012465,2]
[351312669,1738511498547,-677.75,0.00012465,2]
[351312670,1738511498557,-1595.43,0.00012465,2]
[351312671,1738511498567,-2506.07,0.00012465,2]
[351312672,1738511498577,-539.77,0.00012465,2]
[351312673,1738511498587,-842.15,0.00012465,2]
[351312674,1738511498598,-329.7,0.00012465,2]
[351312675,1738511498608,-3571.76,0.00012465,2]
[351312676,1738511498618,-754.64,0.00012465,2]
[351312677,1738511498627,-779.97,0.00012465,2]
[351312678,1738511498637,-319.816449,0.00012465,2]
[351312679,1738511498647,-3366.95,0.00012465,2]
[351312680,1738511498657,-1388.96,0.00012465,2]
[351312681,1738511498666,-1447.22,0.00012465,2]
[351312682,1738511498678,-1621.42,0.00012465,2]
[351312683,1738511498688,-1280.75,0.00012465,2]
[351312684,1738511498699,-2398.8,0.00012465,2]
[351312685,1738511498709,-986.99,0.00012465,2]
[351312686,1738511498719,-6074.3,0.00012465,2]
[351312687,1738511498729,-365.1,0.00012465,2]
[351312688,1738511498739,-886.37,0.00012465,2]
[351312689,1738511498749,-1376.7,0.00012465,2]
[351312690,1738511498758,-500.0,0.00012465,2]
[351312691,1738511498768,-715.29,0.00012465,2]
[351312692,1738511498777,-1472.49,0.00012465,2]
[351312693,1738511498787,-500.0,0.00012465,2]
[351312694,1738511498797,-520.69,0.00012465,2]
[351312695,1738511498808,-2816.92,0.00012465,2]
[351312696,1738511498818,-1537.46,0.00012465,2]
[351312697,1738511498827,-1782.22,0.00012465,2]
[351312698,1738511498838,-2593.44,0.00012465,2]
[351312699,1738511498848,-1707.98,0.00012465,2]
[351312700,1738511498857,-814.03,0.00012465,2]
[351312701,1738511498867,-2517.19,0.00012465,2]
[351312702,1738511498877,-500.0,0.00012465,2]
[351312703,1738511498887,-3495.99,0.00012465,2]
[351312704,1738511498897,-500.0,0.00012465,2]
[351312705,1738511498906,-1097.15,0.00012465,2]
[351312706,1738511498917,-3686.72,0.00012465,2]
[351312707,1738511498928,-873.88,0.00012465,2]
[351312708,1738511498938,-4032.99,0.00012465,2]
[351312709,1738511498947,-500.0,0.00012465,2]
[351312710,1738511498957,-2612.06,0.00012465,2]
[351312711,1738511498967,-3411.01,0.00012465,2]
[351312712,1738511498977,-2404.98,0.00012465,2]
[351312713,1738511498987,-500.0,0.00012465,2]
[351312714,1738511498996,-500.0,0.00012465,2]
[351312715,1738511499006,-866.33,0.00012465,2]
[351312716,1738511499016,-3469.55,0.00012465,2]
[351312717,1738511499025,-1883.12,0.00012465,2]
[351312718,1738511499035,-610.84141765,0.00012465,2]
[351312719,1738511499045,-2058.8,0.00012465,2]
[351312720,1738511499054,-608.43,0.00012465,2]
[351312721,1738511499063,-1319.01,0.00012465,2]
[351312722,1738511499073,-2391.61,0.00012465,2]
[351312723,1738511499083,-4530.32,0.00012465,2]
[351312724,1738511499093,-500.0,0.00012465,2]
[351312725,1738511499102,-1228.14,0.00012465,2]
[351312726,1738511499111,-6198.62,0.00012465,2]
[351312727,1738511499122,-500.0,0.00012465,2]
[351312728,1738511499132,-4177.74,0.00012465,2]
[351312729,1738511499148,-500.0,0.00012465,2]
[351312730,1738511499158,-853.08,0.00012465,2]
[351312731,1738511499168,-500.0,0.00012465,2]
[351312732,1738511499177,-669.71,0.00012465,2]
[351312733,1738511499187,-539.5,0.00012465,2]
[351312734,1738511499197,-1402.67,0.00012465,2]
[351312735,1738511499206,-1801.53,0.00012465,2]
[351312736,1738511499216,-1549.92,0.00012465,2]
[351312737,1738511499225,-500.0,0.00012465,2]
[351312738,1738511499235,-820.42,0.00012465,2]
[351312739,1738511499245,-569.44,0.00012465,2]
[351312740,1738511499256,-935.02,0.00012465,2]
[351312741,1738511499266,-816.63,0.00012465,2]
[351312742,1738511499275,-500.0,0.00012465,2]
[351312743,1738511499284,-584.53,0.00012465,2]
[351312744,1738511499294,-885.67,0.00012465,2]
[351312745,1738511499304,-225.089609,0.00012465,2]
[351312746,1738511499313,-184.60777846,0.00012496,2]
[351312747,1738511499323,-1000.0,0.00012521,2]
[351312748,1738511499332,-1000.0,0.00012521,2]
[351312749,1738511499342,-1332.82,0.00012595,2]
[351312750,1738511499351,-1964.01,0.00012595,2]
[351312751,1738511499361,-2603.59,0.00012595,2]
[351312752,1738511499371,-2889.94,0.00012595,2]
[351312753,1738511499381,-4743.23,0.00012595,2]
[351312754,1738511499390,-10523.62,0.00012595,2]
[351312755,1738511499400,-1554.63,0.00012595,2]
[351312756,1738511499409,-1284.59,0.00012595,2]
[351312757,1738511499418,-1679.21,0.00012595,2]
[351312758,1738511499428,-2652.81,0.00012595,2]
[351312759,1738511499437,-654.17,0.00012595,2]
[351312760,1738511499447,-1718.82,0.00012595,2]
[351312761,1738511499457,-1974.37,0.00012595,2]
[351312762,1738511499468,-2000.83,0.00012595,2]
[351312763,1738511499479,-836.56,0.00012595,2]
[351312764,1738511499488,-1343.39,0.00012595,2]
[351312765,1738511499500,-1186.75,0.00012595,2]
[351312766,1738511499510,-500.0,0.00012596,2]
[351312767,1738511499521,-500.0,0.00012596,2]
[351312768,1738511499531,-596.58,0.00012596,2]
[351312769,1738511499541,-500.0,0.00012596,2]
[351312770,1738511499551,-710.49,0.00012596,2]
[351312771,1738511499561,-1187.42,0.00012597,2]
[351312772,1738511499570,-817.82,0.00012597,2]
[351312773,1738511499581,-607.41,0.00012597,2]
[351312774,1738511499591,-500.0,0.00012597,2]
[351312775,1738511499600,-1230.03,0.00012597,2]
[351312776,1738511499609,-615.34,0.00012597,2]
[351312777,1738511499618,-714.07,0.00012597,2]
[351312778,1738511499628,-1449.17,0.00012597,2]
[351312779,1738511499638,-1251.19,0.00012597,2]
[351312780,1738511499647,-1405.84,0.00012597,2]
[351312781,1738511499657,-1494.61,0.00012597,2]
[351312782,1738511499666,-828.44,0.00012597,2]
[351312783,1738511499677,-500.0,0.00012597,2]
[351312784,1738511499687,-676.04,0.00012597,2]
[351312785,1738511499696,-535.23,0.00012597,2]
[351312786,1738511499706,-1723.36,0.00012597,2]
[351312787,1738511499716,-854.84,0.00012597,2]
[351312788,1738511499725,-1459.08,0.00012597,2]
[351312789,1738511499736,-1678.19,0.00012597,2]
[351312790,1738511499746,-571.62,0.00012597,2]
[351312791,1738511499756,-780.5,0.00012597,2]
[351312792,1738511499766,-500.0,0.00012597,2]
[351312793,1738511499775,-1296.82,0.00012597,2]
[351312794,1738511499784,-1446.98,0.00012597,2]
[351312795,1738511499794,-500.0,0.00012597,2]
[351312796,1738511499804,-618.81,0.00012597,2]
[351312797,1738511499814,-730.18,0.00012597,2]
[351312798,1738511499824,-609.86,0.00012597,2]
[351312799,1738511499834,-978.46,0.00012601,2]
[351312800,1738511499844,-518.13,0.00012601,2]
[351312801,1738511499854,-500.0,0.00012601,2]
[351312802,1738511499864,-1147.35,0.00012601,2]
[351312803,1738511499874,-668.46,0.00012601,2]
[351312804,1738511499884,-1211.37,0.00012601,2]
[351312805,1738511499894,-594.76,0.00012601,2]
[351312806,1738511499903,-1093.43,0.00012601,2]
[351312807,1738511499912,-500.0,0.00012601,2]
[351312808,1738511499923,-500.0,0.00012601,2]
[351312809,1738511499933,-500.0,0.00012601,2]
[351312810,1738511499943,-500.0,0.00012601,2]
[351312811,1738511499953,-503.38438737,0.00012601,2]
[351312812,1738511499963,-829.51,0.00012601,2]
[351312813,1738511499972,-500.0,0.00012601,2]
[351312814,1738511499982,-500.0,0.00012601,2]
[351312815,1738511499992,-1097.71,0.00012601,2]
[351312816,1738511500001,-1068.84,0.00012601,2]
[351312817,1738511500011,-500.0,0.00012601,2]
[351312818,1738511500020,-500.0,0.00012601,2]
[351312819,1738511500030,-500.0,0.00012601,2]
[351312820,1738511500040,-500.0,0.00012601,2]
[351312821,1738511500051,-561.08,0.00012601,2]
[351312822,1738511500060,-500.0,0.00012601,2]
[351312823,1738511500070,-449.03610455,0.00012601,2]
[351312824,1738511500080,-515.69,0.00012601,2]
[351312825,1738511500089,-653.67,0.00012601,2]
[351312826,1738511500099,-1093.31,0.00012601,2]
[351312827,1738511500108,-1053.18,0.00012601,2]
[351312828,1738511500119,-500.0,0.00012601,2]
[351312829,1738511500129,-1273.51,0.00012601,2]
[351312830,1738511500138,-522.28,0.00012601,2]
[351312831,1738511500149,-1239.31,0.00012601,2]
[351312832,1738511500158,-740.34,0.00012601,2]
[351312833,1738511500168,-500.0,0.00012601,2]
[351312834,1738511500179,-644.61,0.00012601,2]
[351312835,1738511500188,-913.35,0.00012601,2]
[351312836,1738511500198,-1062.0,0.00012601,2]
[351312837,1738511500207,-1115.18,0.00012601,2]
[351312838,1738511500217,-945.68,0.00012601,2]
[351312839,1738511500227,-607.69,0.00012601,2]
[351312840,1738511500237,-500.0,0.00012601,2]
[351312841,1738511500246,-522.96,0.00012601,2]
[351312842,1738511500256,-1035.26,0.00012601,2]
[351312843,1738511500265,-2196.81,0.00012601,2]
[351312844,1738511500276,-500.0,0.00012601,2]
[351312845,1738511500286,-1325.26,0.00012601,2]
[351312846,1738511500295,-975.31,0.00012601,2]
[351312847,1738511500304,-1985.37,0.00012601,2]
[351312848,1738511500314,-918.08,0.00012601,2]
[351312849,1738511500323,-2083.26,0.00012601,2]
[351312850,1738511500333,-1965.57,0.00012601,2]
[351312851,1738511500343,-2873.430661,0.00012601,2]
[351312852,1738511500353,-2873.430661,0.00012601,2]
[351312853,1738511500362,-1323.45,0.00012601,2]
[351312854,1738511500511,-1635.63,0.00012601,2]
[351312855,1738511500522,-222.401033,0.00012601,2]
[351312856,1738511500533,-500.0,0.00012601,2]
[351312857,1738511500543,-222.401033,0.00012601,2]
[351312858,1738511500554,-5662.33,0.00012601,2]
[351312859,1738511500564,-774.16,0.00012601,2]
[351312860,1738511500573,-151.0,0.00012601,2]
[351312861,1738511500583,-782.48,0.00012601,2]
[351312862,1738511500593,-7030.17,0.00012601,2]
[351312863,1738511500603,-2514.52,0.00012601,2]
[351312864,1738511500612,-161.73379,0.00012601,2]
[351312865,1738511500622,-681.48,0.00012601,2]
[351312866,1738511500632,-790.42,0.00012601,2]
[351312867,1738511500642,-161.73379,0.00012601,2]
[351312868,1738511500652,-1289.080245,0.00012601,2]
[351312869,1738511500662,-3657.25,0.00012601,2]
[351312870,1738511500671,-1289.080245,0.00012601,2]
[351312871,1738511500680,-3049.12,0.00012601,2]
[351312872,1738511500690,-151.0,0.00012601,2]
[351312873,1738511500699,-316.03,0.00012601,2]
[351312874,1738511500709,-1745.16,0.00012601,2]
[351312875,1738511500719,-1031.35,0.00012601,2]
[351312876,1738511500728,-1816.81,0.00012601,2]
[351312877,1738511500737,-528.0,0.00012601,2]
[351312878,1738511500748,-4052.48,0.00012601,2]
[351312879,1738511500760,-602.22,0.00012601,2]
[351312880,1738511500770,-151.0,0.00012601,2]
[351312881,1738511500781,-500.0,0.00012601,2]
[351312882,1738511500790,-151.0,0.00012601,2]
[351312883,1738511500800,-1474.86,0.00012601,2]
[351312884,1738511500809,-4337.5,0.00012601,2]
[351312885,1738511500819,-151.0,0.00012601,2]
[351312886,1738511500828,-1297.61,0.00012601,2]
[351312887,1738511500838,-1453.24,0.00012601,2]
[351312888,1738511500847,-1696.27,0.00012601,2]
[351312889,1738511500857,-151.0,0.00012601,2]
[351312890,1738511500867,-1292.86,0.00012601,2]
[351312891,1738511500876,-1155.8,0.00012601,2]
[351312892,1738511500886,-734.3,0.00012601,2]
[351312893,1738511500896,-1512.01,0.00012601,2]
[351312894,1738511500905,-1336.03,0.00012601,2]
[351312895,1738511500915,-500.0,0.00012601,2]
[351312896,1738511500927,-686.62,0.00012601,2]
[351312897,1738511500938,-1393.61,0.00012601,2]
[351312898,1738511500947,-500.0,0.00012601,2]
[351312899,1738511500957,-1657.23,0.00012601,2]
[351312900,1738511500967,-1120.37,0.00012601,2]
[351312901,1738511500977,-823.51,0.00012601,2]
[351312902,1738511500987,-500.0,0.00012602,2]
[351312903,1738511500996,-500.0,0.00012602,2]
[351312904,1738511501006,-663.36,0.00012602,2]
[351312905,1738511501016,-570.80978141,0.00012602,2]
[351312906,1738511501026,-500.0,0.00012602,2]
[351312907,1738511501035,-500.0,0.00012602,2]
[351312908,1738511501044,-500.0,0.00012602,2]
[351312909,1738511501054,-698.15,0.00012602,2]
[351312910,1738511501064,-500.0,0.00012602,2]
[351312911,1738511501074,-500.0,0.00012602,2]
[351312912,1738511501083,-500.0,0.00012602,2]
[351312913,1738511501093,-500.0,0.00012602,2]
[351312914,1738511501103,-500.0,0.00012602,2]
[351312915,1738511501112,-500.0,0.00012602,2]
[351312916,1738511501121,-500.0,0.00012602,2]
[351312917,1738511501131,-500.0,0.00012602,2]
[351312918,1738511501140,-500.0,0.00012602,2]
[351312919,1738511501149,-705.16,0.00012602,2]
[351312920,1738511501159,-531.92,0.00012602,2]
[351312921,1738511501170,-218.4,0.00012602,2]
[351312922,1738511501180,-218.4,0.00012602,2]
[351312923,1738511501189,-500.0,0.00012602,2]
[351312924,1738511501199,-500.0,0.00012602,2]
[351312925,1738511501209,-500.0,0.00012602,2]
[351312926,1738511501218,-814.253625,0.00012602,2]
[351312927,1738511501227,-814.253625,0.00012602,2]
[351312928,1738511501236,-500.0,0.00012602,2]
[351312929,1738511501246,-500.0,0.00012602,2]
[351312930,1738511501256,-151.0,0.00012602,2]
[351312931,1738511501266,-429.64,0.00012602,2]
[351312932,1738511501275,-500.0,0.00012602,2]
[351312933,1738511501284,-719.85,0.00012602,2]
[351312934,1738511501293,-594.38,0.00012602,2]
[351312935,1738511501303,-563.78,0.00012602,2]
[351312936,1738511501311,-500.0,0.00012602,2]
[351312937,1738511501321,-500.0,0.00012602,2]
[351312938,1738511501330,-752.42,0.00012602,2]
[351312939,1738511501339,-500.0,0.00012602,2]
[351312940,1738511501348,-500.0,0.00012602,2]
[351312941,1738511501358,-172.046731,0.00012602,2]
[351312942,1738511501367,-743.8,0.00012602,2]
[351312943,1738511501378,-172.046731,0.00012602,2]
[351312944,1738511501387,-618.52,0.00012602,2]
[351312945,1738511501396,-500.0,0.00012602,2]
[351312946,1738511501405,-231.451958,0.00012602,2]
[351312947,1738511501415,-500.0,0.00012602,2]
[351312948,1738511501425,-231.451958,0.00012602,2]
[351312949,1738511501434,-500.0,0.00012602,2]
[351312950,1738511501443,-215.347021,0.00012602,2]
[351312951,1738511501454,-500.0,0.00012602,2]
[351312952,1738511501463,-215.347021,0.00012602,2]
[351312953,1738511501472,-177.789605,0.00012602,2]
[351312954,1738511501482,-725.47,0.00012602,2]
[351312955,1738511501491,-764.06,0.00012602,2]
[351312956,1738511501504,-500.0,0.00012602,2]
[351312957,1738511501514,-423.85,0.00012602,2]
[351312958,1738511501534,-698.18,0.00012602,2]
[351312959,1738511501554,-791.74,0.00012602,2]
[351312960,1738511501572,-807.25,0.00012602,2]
[351312961,1738511501593,-547.53,0.00012602,2]
[351312962,1738511501609,-500.0,0.00012602,2]
[351312963,1738511501627,-500.0,0.00012602,2]
[351312964,1738511501650,-500.0,0.00012602,2]
[351312965,1738511501669,-837.73,0.00012602,2]
[351312966,1738511501688,-621.45,0.00012602,2]
[351312967,1738511501706,-631.63,0.00012602,2]
[351312968,1738511501728,-799.17,0.00012602,2]
[351312969,1738511501745,-342.26402893,0.00012602,2]
[351312970,1738511501761,-771.95,0.00012602,2]
[351312971,1738511501777,-620.52,0.00012602,2]
[351312972,1738511501791,-618.87,0.00012602,2]
[351312973,1738511501809,-616.27,0.00012602,2]
[351312974,1738511501826,-500.0,0.00012602,2]
[351312975,1738511501844,-565.37,0.00012602,2]
[351312976,1738511501863,-500.0,0.00012602,2]
[351312977,1738511501881,-587.32,0.00012602,2]
[351312978,1738511501898,-500.0,0.00012602,2]
[351312979,1738511501915,-500.0,0.00012602,2]
[351312980,1738511501932,-780.81,0.00012602,2]
[351312981,1738511501948,-584.3,0.00012602,2]
[351312982,1738511501965,-500.0,0.00012602,2]
[351312983,1738511501981,-607.98,0.00012602,2]
[351312984,1738511501996,-2686.29,0.00012602,2]
[351312985,1738511502012,-500.0,0.00012602,2]
[351312986,1738511502027,-500.0,0.00012602,2]
[351312987,1738511502043,-808.37,0.00012602,2]
[351312988,1738511502059,-794.83,0.00012602,2]
[351312989,1738511502073,-2679.98,0.00012602,2]
[351312990,1738511502088,-500.0,0.00012602,2]
[351312991,1738511502104,-2338.08,0.00012602,2]
[351312992,1738511502119,-1073.23,0.00012602,2]
[351312993,1738511502133,-500.0,0.00012602,2]
[351312994,1738511502149,-500.0,0.00012602,2]
[351312995,1738511502164,-1816.82,0.00012602,2]
[351312996,1738511502180,-1683.79,0.00012602,2]
[351312997,1738511502195,-4162.42,0.00012602,2]
[351312998,1738511502209,-3144.7,0.00012602,2]
[351312999,1738511502224,-151.0,0.00012602,2]
[351313000,1738511502239,-500.0,0.00012602,2]
[351313001,1738511502257,-575.75,0.00012602,2]
[351313002,1738511502274,-689.19,0.00012602,2]
[351313003,1738511502290,-305.292181,0.00012602,2]
[351313004,1738511502305,-1191.99,0.00012602,2]
[351313005,1738511502320,-851.33,0.00012602,2]
[351313006,1738511502334,-677.75,0.00012602,2]
[351313007,1738511502350,-1595.43,0.00012602,2]
[351313008,1738511502365,-2506.07,0.00012602,2]
[351313009,1738511502379,-539.77,0.00012602,2]
[351313010,1738511502396,-842.15,0.00012602,2]
[351313011,1738511502412,-3571.76,0.00012602,2]
[351313012,1738511502428,-754.64,0.00012602,2]
[351313013,1738511502442,-779.97,0.00012602,2]
[351313014,1738511502457,-319.816449,0.00012602,2]
[351313015,1738511502472,-3366.95,0.00012602,2]
[351313016,1738511502487,-1388.96,0.00012602,2]
[351313017,1738511502504,-1447.22,0.00012602,2]
[351313018,1738511502519,-1621.42,0.00012602,2]
[351313019,1738511502534,-1280.75,0.00012602,2]
[351313020,1738511502550,-2398.8,0.00012602,2]
[351313021,1738511502565,-986.99,0.00012602,2]
[351313022,1738511502582,-6074.3,0.00012602,2]
[351313023,1738511502597,-886.37,0.00012602,2]
[351313024,1738511502613,-1376.7,0.00012602,2]
[351313025,1738511502628,-500.0,0.00012602,2]
[351313026,1738511502643,-715.29,0.00012602,2]
[351313027,1738511502659,-1472.49,0.00012602,2]
[351313028,1738511502675,-500.0,0.00012602,2]
[351313029,1738511502691,-520.69,0.00012602,2]
[351313030,1738511502704,-2816.92,0.00012602,2]
[351313031,1738511502713,-1537.46,0.00012602,2]
[351313032,1738511502723,-1782.22,0.00012602,2]
[351313033,1738511502734,-2593.44,0.00012602,2]
[351313034,1738511502743,-1707.98,0.00012602,2]
[351313035,1738511502753,-814.03,0.00012602,2]